bitfinex/quotes_SOLUSD_20240703
["timestamp","ask_amount","ask_price","bid_price","bid_amount"]
[1720026783508,22.1121,142.63,142.62,13.21]
[1720026783713,22.1121,142.63,142.61,13.21]
[1720026783938,7.0116,142.62,142.61,13.21]
[1720026785103,15.101,142.63,142.61,13.21]
[1720026785104,7.0112,142.63,142.61,13.21]
[1720026785305,7.0106,142.64,142.62,13.21]
[1720026785515,7.0106,142.64,142.63,13.21]
[1720026786522,15.1957,142.67,142.63,13.21]
[1720026786734,15.1957,142.67,142.65,13.21]
[1720026787333,7.0097,142.66,142.65,13.21]
[1720026788237,15.1957,142.67,142.65,13.21]
[1720026788422,13.0574,142.68,142.66,13.21]
[1720026789127,7.0087,142.68,142.67,13.21]
[1720026791931,16.159,142.7,142.61,24.5422]
[1720026791932,7.0094,142.67,142.61,24.5422]
[1720026792134,7.0094,142.67,142.66,13.21]
[1720026794133,17.5211,142.69,142.59,21.07]
[1720026794338,7.0098,142.66,142.6,52.0125]
[1720026794525,7.0098,142.66,142.65,13.21]
[1720026795452,16.159,142.7,142.65,13.21]
[1720026795742,7.009,142.68,142.67,13.21]
[1720026796122,7.0092,142.67,142.66,13.21]
[1720026796543,7.0088,142.68,142.66,13.21]
[1720026796758,7.0088,142.68,142.67,13.21]
[1720026798252,0.17,142.69,142.6,80.0525]
[1720026798433,7.0104,142.65,142.6,80.0525]
[1720026798632,7.0098,142.66,142.64,13.21]
[1720026798833,7.0098,142.66,142.65,13.21]
[1720026799029,7.0093,142.67,142.65,13.21]
[1720026799234,7.0093,142.67,142.66,13.21]
[1720026799759,16.159,142.7,142.66,13.21]
[1720026800049,7.0085,142.69,142.68,13.21]
[1720026801651,6.5085,142.69,142.68,13.21]
[1720026801832,7.0086,142.68,142.67,13.21]
[1720026804156,7.0084,142.69,142.67,13.21]
[1720026804453,7.0086,142.68,142.67,13.21]
[1720026805233,7.0083,142.69,142.67,13.21]
[1720026805433,7.0083,142.69,142.68,13.21]
[1720026810563,15.4197,142.73,142.68,13.21]
[1720026810743,7.0072,142.71,142.7,13.21]
[1720026812656,7.0069,142.72,142.7,13.21]
[1720026812840,7.0069,142.72,142.71,13.21]
[1720026813771,7.0064,142.73,142.71,13.21]
[1720026813941,7.0064,142.73,142.72,13.21]
[1720026815974,7.0072,142.72,142.67,38.5848]
[1720026816138,7.0072,142.72,142.71,13.21]
[1720026816661,7.0072,142.72,142.67,38.5848]
[1720026816836,7.0072,142.72,142.68,45.0]
[1720026817043,17.5146,142.74,142.66,52.84]
[1720026817242,7.0072,142.71,142.7,13.21]
[1720026818465,7.0072,142.71,142.68,0.537644]
[1720026818664,7.0072,142.71,142.69,13.21]
[1720026818961,7.0072,142.71,142.68,0.537644]
[1720026818962,7.0072,142.71,142.7,13.21]
[1720026819753,13.55,142.75,142.7,13.21]
[1720026819754,7.0069,142.72,142.7,13.21]
[1720026819938,7.0063,142.73,142.71,13.21]
[1720026820140,7.0063,142.73,142.72,13.21]
[1720026821968,7.0063,142.73,142.71,13.21]
[1720026823374,0.34,142.75,142.72,13.21]
[1720026823745,16.5196,142.76,142.72,13.21]
[1720026824341,7.0062,142.73,142.68,0.537644]
[1720026824575,7.0062,142.73,142.72,13.21]
[1720026824846,7.0059,142.74,142.72,13.21]
[1720026828184,23.5248,142.76,142.73,13.21]
[1720026828349,7.0043,142.77,142.75,13.21]
[1720026829666,7.0043,142.77,142.76,13.21]
[1720026829970,7.0039,142.78,142.76,13.21]
[1720026830166,7.0039,142.78,142.77,13.21]
[1720026830371,7.0039,142.78,142.76,13.21]
[1720026830976,7.0042,142.77,142.74,1.39933689]
[1720026831163,7.0044,142.77,142.76,13.21]
[1720026834170,7.0044,142.77,142.71,7.007]
[1720026834469,7.0044,142.77,142.76,13.21]
[1720026842391,6.3164,142.82,142.76,13.21]
[1720026842591,7.0025,142.81,142.79,13.21]
[1720026843377,7.0028,142.8,142.79,13.21]
[1720026847398,7.0023,142.81,142.79,13.21]
[1720026849099,7.0023,142.81,142.76,7.0046]
[1720026849314,7.003,142.8,142.77,45.0]
[1720026849472,7.0025,142.81,142.79,13.21]
[1720026849677,7.0031,142.8,142.76,45.0]
[1720026849902,7.0024,142.81,142.79,13.21]
[1720026850397,7.0024,142.81,142.8,13.21]
[1720026850796,7.0024,142.81,142.76,7.0047]
[1720026850982,7.0024,142.81,142.8,13.21]
[1720026851493,0.8430844,142.83,142.8,13.21]
[1720026851695,7.8446844,142.83,142.82,13.21]
[1720026853917,7.8446844,142.83,142.81,13.21]
[1720026854203,7.8446844,142.83,142.77,52.004]
[1720026854409,7.0018,142.82,142.81,13.21]
[1720026855618,7.8444844,142.83,142.81,13.21]
[1720026856101,7.8444844,142.83,142.82,13.21]
[1720026856300,6.8439844,142.84,142.82,13.21]
[1720026858794,6.2398,142.86,142.82,13.21]
[1720026858795,7.0003,142.85,142.82,13.21]
[1720026859314,7.0003,142.85,142.83,13.21]
[1720026859496,7.0003,142.85,142.84,13.21]
[1720026859893,7.0003,142.85,142.8,13.21]
[1720026860111,7.0003,142.85,142.81,45.0]
[1720026860305,7.001,142.84,142.81,45.0]
[1720026860704,7.001,142.84,142.82,13.21]
[1720026863814,7.001,142.84,142.83,13.21]
[1720026864110,16.2385,142.87,142.83,13.21]
[1720026864416,7.0006,142.85,142.83,13.21]
[1720026865303,7.0006,142.85,142.81,45.0]
[1720026865506,7.0006,142.85,142.83,13.21]
[1720026874508,7.0006,142.85,142.84,13.21]
[1720026874903,7.0006,142.85,142.83,13.21]
[1720026875527,7.0006,142.85,142.8,45.0]
[1720026875737,16.2385,142.87,142.8,45.0]
[1720026875738,7.0008,142.84,142.8,45.0]
[1720026876030,7.0008,142.84,142.83,13.21]
[1720026876530,7.0004,142.85,142.83,13.21]
[1720026877609,16.2385,142.87,142.84,13.21]
[1720026877610,6.9999,142.86,142.84,13.21]
[1720026877919,7.0003,142.85,142.84,13.21]
[1720026878508,7.0003,142.85,142.81,0.93200709]
[1720026881635,17.4947,142.9,142.84,13.21]
[1720026881933,6.9989,142.88,142.87,13.21]
[1720026882705,6.9989,142.88,142.86,13.21]
[1720026883714,6.9993,142.87,142.86,13.21]
[1720026887639,6.9993,142.87,142.82,1.39867639]
[1720026887936,6.9993,142.87,142.86,13.21]
[1720026888130,7.0001,142.86,142.82,1.39867639]
[1720026888330,6.9995,142.87,142.85,13.21]
[1720026888523,6.9995,142.87,142.86,13.21]
[1720026888929,6.999,142.88,142.86,13.21]
[1720026890917,6.9993,142.87,142.86,13.21]
[1720026893841,6.9993,142.87,142.86,13.21]
[1720026896053,6.9988,142.88,142.86,13.21]
[1720026896224,6.9988,142.88,142.87,13.21]
[1720026897067,6.9988,142.88,142.86,13.21]
[1720026898428,6.9988,142.88,142.87,13.21]
[1720026898632,17.4947,142.9,142.87,13.21]
[1720026898633,15.5402,142.92,142.87,13.21]
[1720026898854,15.5402,142.92,142.89,13.21]
[1720026899224,15.5402,142.92,142.83,21.07]
[1720026899225,6.9981,142.9,142.88,13.21]
[1720026899644,15.5402,142.92,142.88,13.21]
[1720026899959,6.9982,142.9,142.88,13.21]
[1720026900153,6.9983,142.89,142.88,13.21]
[1720026900456,6.9983,142.89,142.87,13.21]
[1720026900644,6.998,142.9,142.88,13.21]
[1720026903034,6.9974,142.91,142.89,13.21]
[1720026903231,7.0013,142.83,142.82,21.07]
[1720026903433,7.0018,142.82,142.78,13.21]
[1720026903835,7.0015,142.83,142.78,13.21]
[1720026904046,17.5036,142.83,142.74,35.8509]
[1720026904230,7.0042,142.78,142.74,16.6477]
[1720026904425,7.0029,142.8,142.74,7.0057]
[1720026904760,13.5416,142.81,142.77,13.21]
[1720026905263,6.5392,142.81,142.77,13.21]
[1720026905564,6.5392,142.81,142.76,7.0045]
[1720026905565,7.0018,142.82,142.78,13.21]
[1720026907157,22.8836,142.85,142.74,7.0052]
[1720026907158,7.0032,142.8,142.74,7.0052]
[1720026907372,20.3826,142.81,142.76,13.21]
[1720026907864,7.0028,142.8,142.76,13.21]
[1720026908251,20.3824,142.81,142.76,13.21]
[1720026908569,20.2124,142.81,142.76,13.21]
[1720026910169,7.0028,142.8,142.76,13.21]
[1720026912762,20.5534,142.79,142.74,17.5138]
[1720026912970,20.5534,142.79,142.71,24.524]
[1720026912971,7.0039,142.78,142.71,24.524]
[1720026913153,13.21,142.77,142.72,20.2164]
[1720026913354,13.21,142.77,142.73,7.0061]
[1720026913550,13.21,142.78,142.73,30.7254]
[1720026914154,13.21,142.74,142.69,30.1248]
[1720026914557,13.21,142.74,142.69,37.1328]
[1720026914956,13.21,142.74,142.69,20.218]
[1720026915547,20.2155,142.75,142.7,13.21]
[1720026916452,6.5088,142.77,142.72,20.2165]
[1720026916653,19.7188,142.77,142.72,20.2165]
[1720026917060,6.5088,142.77,142.73,13.21]
[1720026917461,13.5132,142.77,142.73,13.21]
[1720026918953,7.0049,142.76,142.72,13.21]
[1720026919161,13.21,142.76,142.68,18.058444]
[1720026919375,0.34,142.75,142.71,13.21]
[1720026919874,13.55,142.75,142.7,13.21]
[1720026920181,7.0059,142.74,142.7,13.21]
[1720026920974,7.0064,142.73,142.69,45.0]
[1720026921177,20.2159,142.74,142.69,13.21]
[1720026921477,7.0059,142.74,142.7,13.21]
[1720026926374,7.0059,142.74,142.68,25.066844]
[1720026926585,7.0063,142.73,142.69,58.21]
[1720026929366,7.0069,142.72,142.68,0.537644]
[1720026929567,7.0069,142.72,142.68,13.747644]
[1720026930467,35.3694,142.73,142.68,13.747644]
[1720026930660,22.1594,142.73,142.69,13.21]
[1720026931386,7.0068,142.72,142.69,13.21]
[1720026931786,7.0068,142.72,142.68,0.537644]
[1720026931964,7.0068,142.72,142.68,13.747644]
[1720026932288,35.3694,142.73,142.68,13.747644]
[1720026935787,0.17,142.72,142.68,0.537644]
[1720026935993,7.0081,142.69,142.68,0.537644]
[1720026936506,20.2181,142.69,142.68,0.537644]
[1720026936670,20.5581,142.69,142.68,0.537644]
[1720026937895,7.3481,142.69,142.68,0.537644]
[1720026938069,20.5581,142.69,142.68,0.537644]
[1720026940583,7.3481,142.69,142.68,0.537644]
[1720026941009,20.5581,142.69,142.68,0.537644]
[1720026941575,37.1398,142.69,142.68,0.537644]
[1720026946780,17.5217,142.68,142.6,30.7404]
[1720026946974,7.0106,142.64,142.57,17.5343]
[1720026947198,7.0106,142.64,142.59,13.21]
[1720026947199,0.34,142.63,142.59,13.21]
[1720026947400,0.34,142.63,142.58,20.2233]
[1720026947592,0.34,142.63,142.59,13.21]
[1720026948200,0.17,142.63,142.59,13.21]
[1720026948394,7.0103,142.65,142.6,7.0125]
[1720026948587,13.21,142.65,142.6,7.0125]
[1720026948991,20.2201,142.65,142.6,20.2225]
[1720026949188,6.3738,142.66,142.61,13.21]
[1720026949189,19.4138,142.66,142.61,13.21]
[1720026949382,16.5817,142.69,142.62,7.0112]
[1720026949707,16.5817,142.69,142.61,17.5302]
[1720026949708,7.0094,142.67,142.61,24.5422]
[1720026950000,7.0097,142.66,142.61,24.5422]
[1720026950298,7.0102,142.65,142.59,7.0126]
[1720026950503,7.0114,142.63,142.6,13.21]
[1720026950702,7.0114,142.63,142.59,13.21]
[1720026950908,7.0114,142.63,142.58,24.5462]
[1720026951389,7.0114,142.63,142.59,13.21]
[1720026952000,7.0117,142.62,142.57,7.0138]
[1720026952202,7.0117,142.62,142.58,58.21]
[1720026952401,7.0117,142.62,142.58,45.0]
[1720026952603,7.0117,142.62,142.58,58.21]
[1720026955800,7.0113,142.63,142.59,13.21]
[1720026956514,7.0108,142.64,142.6,13.21]
[1720026957312,7.0103,142.65,142.62,13.21]
[1720026957493,20.0,142.64,142.62,13.21]
[1720026957886,7.0103,142.65,142.62,13.21]
[1720026958307,7.0098,142.66,142.62,13.21]
[1720026958704,7.0102,142.65,142.62,13.21]
[1720026959094,7.0102,142.65,142.63,13.21]
[1720026959298,20.0,142.64,142.63,13.21]
[1720026960027,34.1032,142.69,142.63,13.21]
[1720026960338,7.0091,142.67,142.66,13.21]
[1720026960553,13.5032,142.7,142.66,13.21]
[1720026960698,6.4951,142.7,142.66,13.21]
[1720026960901,7.0075,142.71,142.65,17.5249]
[1720026961116,7.0085,142.69,142.67,13.21]
[1720026961620,7.0086,142.68,142.67,13.21]
[1720026961811,7.0078,142.7,142.67,13.21]
[1720026962012,29.529,142.72,142.64,24.5367]
[1720026962013,7.0072,142.71,142.69,13.21]
[1720026962212,20.0,142.7,142.69,13.21]
[1720026962412,7.0068,142.72,142.69,13.21]
[1720026963724,20.0,142.71,142.69,13.21]
[1720026964640,20.0,142.72,142.7,13.21]
[1720026965102,20.0,142.73,142.7,13.21]
[1720026965806,20.0,142.73,142.65,7.0099]
[1720026965807,7.0078,142.7,142.65,7.0099]
[1720026966131,7.0078,142.7,142.68,13.21]
[1720026966423,7.0073,142.71,142.68,13.21]
[1720026966921,7.0067,142.72,142.67,7.009]
[1720026967224,19.4246,142.68,142.6,7.27383839]
[1720026967424,6.2146,142.68,142.57,28.6175]
[1720026967627,7.0123,142.61,142.57,15.4075]
[1720026968007,7.0126,142.6,142.58,13.21]
[1720026968213,7.0123,142.61,142.58,13.21]
[1720026968637,7.0118,142.62,142.58,13.21]
[1720026969449,7.0118,142.62,142.55,17.5374]
[1720026969450,7.0121,142.61,142.55,24.5524]
[1720026969723,7.0126,142.6,142.57,13.21]
[1720026970036,15.5385,142.64,142.58,13.21]
[1720026970213,33.38,142.63,142.58,13.21]
[1720026970619,7.0117,142.62,142.58,13.21]
[1720026970822,20.0,142.61,142.58,13.21]
[1720026971505,27.0121,142.61,142.57,13.21]
[1720026972110,7.0128,142.6,142.55,17.5374]
[1720026972443,7.0128,142.6,142.56,13.21]
[1720026972629,7.0128,142.6,142.57,13.21]
[1720026973033,7.0134,142.59,142.53,16.6454]
[1720026973229,7.0137,142.58,142.52,17.5404]
[1720026973615,7.0137,142.58,142.54,13.21]
[1720026973817,20.2233,142.59,142.54,13.21]
[1720026974015,20.0,142.58,142.55,13.21]
[1720026974316,27.0137,142.58,142.55,13.21]
[1720026974516,27.0137,142.58,142.54,13.21]
[1720026974926,20.0,142.58,142.54,13.21]
[1720026975134,20.0,142.58,142.55,13.21]
[1720026976034,20.0,142.58,142.54,1.4029006]
[1720026976234,20.0,142.58,142.55,13.21]
[1720026976421,7.0144,142.57,142.54,13.21]
[1720026976619,7.0144,142.57,142.52,24.5569]
[1720026976821,7.0144,142.57,142.54,13.21]
[1720026977119,7.0137,142.58,142.54,13.21]
[1720026978442,7.0137,142.58,142.53,45.0]
[1720026978637,20.0,142.57,142.51,7.017]
[1720026978819,27.0142,142.57,142.53,13.21]
[1720026979022,27.0142,142.57,142.54,13.21]
[1720026980653,20.0,142.57,142.54,13.21]
[1720026981040,20.0,142.57,142.55,13.21]
[1720026982320,20.0,142.58,142.56,13.21]
[1720026982521,20.0,142.59,142.57,13.21]
[1720026982734,27.0133,142.59,142.57,13.21]
[1720026983019,27.0133,142.59,142.56,13.21]
[1720026983741,7.0136,142.58,142.56,13.21]
[1720026983947,20.0,142.59,142.56,13.21]
[1720026984259,7.0126,142.6,142.57,13.21]
[1720026984429,20.0,142.59,142.57,13.21]
[1720026984951,20.0,142.59,142.58,13.21]
[1720026986131,27.0131,142.59,142.58,13.21]
[1720026987148,6.3672,142.67,142.58,13.21]
[1720026987444,6.3672,142.67,142.59,45.0]
[1720026987630,7.0105,142.65,142.63,13.21]
[1720026988027,7.0105,142.65,142.62,13.21]
[1720026988244,7.0107,142.64,142.62,13.21]
[1720026991228,7.0111,142.64,142.62,13.21]
[1720026991428,7.0113,142.63,142.61,13.21]
[1720026992052,7.0113,142.63,142.6,13.21]
[1720026992835,7.0116,142.62,142.6,13.21]
[1720026993037,7.0122,142.61,142.54,20.0152]
[1720026993239,13.38,142.64,142.54,20.0152]
[1720026993240,7.0126,142.6,142.58,13.21]
[1720026993951,7.0122,142.61,142.58,13.21]
[1720026994142,20.0,142.6,142.55,7.0146]
[1720026994340,27.0126,142.6,142.55,7.0146]
[1720026994543,27.0126,142.6,142.57,13.21]
[1720026995047,7.0134,142.59,142.54,17.5377]
[1720026995347,7.0134,142.59,142.56,13.21]
[1720026995845,27.0126,142.6,142.56,13.21]
[1720026996045,27.0126,142.6,142.57,13.21]
[1720026996929,27.0126,142.6,142.54,17.5377]
[1720026997133,0.34,142.59,142.57,13.21]
[1720026997334,27.0126,142.6,142.57,13.21]
[1720026997629,20.0,142.6,142.57,13.21]
[1720026998451,27.0127,142.6,142.57,13.21]
[1720026999151,20.0,142.6,142.57,13.21]
[1720026999338,20.0,142.6,142.58,13.21]
[1720027000363,20.0,142.6,142.59,13.21]
[1720027000939,20.0,142.6,142.58,13.21]
[1720027001152,20.0,142.6,142.54,7.0155]
[1720027001355,27.0126,142.6,142.58,13.21]
[1720027006170,39.1651,142.68,142.6,7.0123]
[1720027006373,7.0098,142.66,142.64,13.21]
[1720027006674,7.0101,142.65,142.6,17.5313]
[1720027006861,7.0101,142.65,142.63,13.21]
[1720027008371,34.8532,142.68,142.63,13.21]
[1720027008584,21.6432,142.68,142.66,13.21]
[1720027008871,28.6522,142.68,142.66,13.21]
[1720027009378,20.0,142.67,142.65,13.21]
[1720027009550,20.0,142.67,142.62,17.529]
[1720027009747,7.0097,142.66,142.64,13.21]
[1720027009965,20.0,142.65,142.64,13.21]
[1720027011788,20.0,142.65,142.61,7.012]
[1720027012005,20.0,142.65,142.62,45.0]
[1720027013473,20.0,142.65,142.6,7.0125]
[1720027015357,20.0,142.65,142.6,7.0125]
[1720027016285,20.0,142.65,142.59,44.0116]
[1720027016588,20.0,142.65,142.61,7.012]
[1720027020268,20.0,142.65,142.61,24.5422]
[1720027020500,20.0,142.66,142.61,24.5422]
[1720027020676,20.0,142.66,142.62,7.0115]
[1720027022187,20.0,142.66,142.63,7.011]
[1720027022396,20.0,142.67,142.64,7.0103]
[1720027022795,21.6432,142.68,142.64,7.0103]
[1720027024410,20.0,142.67,142.64,7.0103]
[1720027025797,20.0,142.67,142.63,24.5383]
[1720027026310,27.0094,142.67,142.62,33.4914]
[1720027026478,27.0094,142.67,142.63,45.0]
[1720027026811,27.0094,142.67,142.63,52.011]
[1720027026812,20.0,142.67,142.63,52.011]
[1720027027584,27.0092,142.67,142.63,45.0]
[1720027028711,20.0,142.67,142.63,52.011]
[1720027029015,20.0,142.67,142.64,7.0105]
[1720027029381,20.0,142.67,142.63,52.0109]
[1720027031903,20.0,142.67,142.66,13.24]
[1720027033900,20.0,142.67,142.59,74.05]
[1720027033901,7.01,142.66,142.64,13.24]
[1720027034323,7.01,142.66,142.6,24.5428]
[1720027034324,7.0101,142.65,142.6,24.5428]
[1720027034505,7.0101,142.65,142.64,13.24]
[1720027034798,16.6238,142.65,142.57,17.5341]
[1720027034999,20.17,142.64,142.56,15.0272]
[1720027035214,20.17,142.64,142.55,21.09]
[1720027035215,7.0127,142.6,142.54,12.52975361]
[1720027035414,7.0124,142.61,142.59,13.24]
[1720027035801,7.0118,142.62,142.59,13.24]
[1720027036119,20.0,142.61,142.59,13.24]
[1720027036339,7.0127,142.6,142.57,13.24]
[1720027037118,7.0127,142.6,142.58,13.24]
[1720027037503,27.1823,142.61,142.58,13.24]
[1720027038404,27.1823,142.61,142.57,13.24]
[1720027039999,20.17,142.61,142.57,13.24]
[1720027040828,20.17,142.61,142.58,13.24]
[1720027041211,20.0,142.61,142.58,13.24]
[1720027041417,20.0,142.61,142.59,13.24]
[1720027041731,20.17,142.62,142.59,13.24]
[1720027043129,27.1817,142.62,142.58,13.24]
[1720027043428,20.17,142.62,142.6,13.24]
[1720027044539,27.1816,142.62,142.6,13.24]
[1720027044831,20.0,142.62,142.58,17.5337]
[1720027045033,20.0,142.62,142.61,13.24]
[1720027045213,20.0,142.64,142.61,13.24]
[1720027046027,27.0107,142.64,142.61,13.24]
[1720027046219,7.0116,142.62,142.61,13.24]
[1720027046413,27.0116,142.62,142.61,13.24]
[1720027046611,7.0121,142.61,142.56,7.0145]
[1720027046817,7.0121,142.61,142.57,58.24]
[1720027047023,7.0121,142.61,142.57,45.0]
[1720027047219,7.0121,142.61,142.57,58.24]
[1720027049328,40.5918,142.62,142.57,58.24]
[1720027049535,20.0,142.61,142.58,13.24]
[1720027049734,20.0,142.61,142.58,20.2535]
[1720027050233,20.0,142.62,142.58,20.2535]
[1720027050935,20.0,142.62,142.58,13.24]
[1720027051421,20.0,142.62,142.58,14.64251678]
[1720027051818,27.0117,142.62,142.57,69.5489]
[1720027052023,27.0117,142.62,142.58,13.24]
[1720027052237,7.0122,142.61,142.57,45.0]
[1720027052536,7.0132,142.59,142.56,13.24]
[1720027052732,27.0128,142.6,142.56,13.24]
[1720027055413,20.0,142.6,142.56,13.24]
[1720027055916,20.0,142.6,142.56,14.64274137]
[1720027056117,20.0,142.6,142.56,13.24]
[1720027057443,20.0,142.6,142.56,20.2544]
[1720027057942,20.0,142.6,142.57,13.24]
[1720027058542,20.0,142.6,142.56,7.0144]
[1720027058745,20.0,142.6,142.56,20.2544]
[1720027059239,20.0,142.6,142.57,7.014]
[1720027059439,20.0,142.6,142.58,20.2532]
[1720027059739,0.17,142.63,142.59,13.24]
[1720027059942,0.34,142.63,142.59,13.24]
[1720027060128,7.1811,142.63,142.6,13.24]
[1720027060322,20.0,142.62,142.6,13.24]
[1720027060941,27.0117,142.62,142.6,13.24]
[1720027061145,27.0117,142.62,142.58,13.24]
[1720027061619,7.0122,142.61,142.58,13.24]
[1720027061827,7.0122,142.61,142.57,13.24]
[1720027062124,7.0122,142.61,142.58,45.0]
[1720027062651,7.0126,142.6,142.55,24.5524]
[1720027062822,7.0126,142.6,142.56,58.24]
[1720027063132,7.0126,142.6,142.56,45.0]
[1720027063443,7.0126,142.6,142.56,58.24]
[1720027064743,20.4222,142.61,142.56,58.24]
[1720027064953,20.0,142.6,142.56,58.24]
[1720027066938,20.0,142.6,142.56,45.0]
[1720027067331,20.0,142.6,142.56,58.24]
[1720027069455,33.24,142.6,142.56,45.0]
[1720027069633,7.0132,142.59,142.54,7.0153]
[1720027069951,7.0132,142.59,142.55,58.24]
[1720027070139,40.2528,142.6,142.55,58.24]
[1720027070544,15.381,142.59,142.56,13.24]
[1720027070733,35.8045,142.59,142.54,13.24]
[1720027071134,35.8045,142.59,142.54,20.2555]
[1720027072530,22.5645,142.59,142.55,13.24]
[1720027072731,15.551,142.59,142.55,13.24]
[1720027074139,22.5641,142.59,142.55,13.24]
[1720027075853,15.551,142.59,142.55,13.24]
[1720027076349,20.0,142.6,142.55,17.5376]
[1720027076552,27.0129,142.6,142.56,45.0]
[1720027076852,20.0,142.6,142.56,45.0]
[1720027077073,27.0129,142.6,142.56,58.24]
[1720027078654,7.0132,142.59,142.55,13.24]
[1720027078836,7.1832,142.59,142.55,13.24]
[1720027079346,0.17,142.59,142.55,13.24]
[1720027079553,0.17,142.59,142.54,24.5538]
[1720027079863,7.1831,142.59,142.55,58.24]
[1720027081534,7.1831,142.59,142.52,5.20816318]
[1720027081535,15.8912,142.58,142.52,5.20816318]
[1720027081859,7.0146,142.56,142.52,18.44816318]
[1720027082232,40.5942,142.57,142.52,13.24]
[1720027082969,28.7874,142.53,142.48,0.8430844]
[1720027083175,7.0173,142.51,142.48,0.8430844]
[1720027083656,33.58,142.52,142.48,0.8430844]
[1720027083657,40.5966,142.52,142.48,0.8430844]
[1720027083955,15.5474,142.53,142.48,21.1013844]
[1720027084163,6.1372,142.56,142.48,0.8430844]
[1720027084465,6.1372,142.56,142.51,13.24]
[1720027084670,26.3918,142.56,142.52,45.0]
[1720027084833,7.0151,142.55,142.5,17.5437]
[1720027085169,7.0159,142.54,142.5,13.24]
[1720027085330,7.1859,142.54,142.5,13.24]
[1720027086067,7.0161,142.53,142.48,7.8614844]
[1720027086240,7.0161,142.53,142.49,13.24]
[1720027086241,7.1861,142.53,142.49,13.24]
[1720027086641,7.1861,142.53,142.48,0.8430844]
[1720027086939,20.4261,142.53,142.48,59.0830844]
[1720027087176,20.2566,142.52,142.48,45.8430844]
[1720027087361,35.7087,142.52,142.48,0.8430844]
[1720027088373,26.8418,142.51,142.48,0.8430844]
[1720027089044,7.0175,142.5,142.48,0.8430844]
[1720027089583,26.8419,142.51,142.48,0.8430844]
[1720027089738,0.17,142.5,142.48,0.8430844]
[1720027091557,7.1876,142.5,142.48,0.8430844]
[1720027091761,20.4276,142.5,142.48,0.8430844]
[1720027092842,7.1876,142.5,142.48,0.8430844]
[1720027093043,20.4276,142.5,142.48,0.8430844]
[1720027093744,20.258,142.49,142.48,0.8430844]
[1720027093963,27.358,142.49,142.48,0.8430844]
[1720027094260,40.598,142.49,142.48,0.8430844]
[1720027094954,20.34,142.49,142.48,0.8430844]
[1720027095261,27.018,142.49,142.48,0.8430844]
[1720027095658,40.598,142.49,142.48,0.8430844]
[1720027097942,20.34,142.49,142.48,0.8430844]
[1720027098256,20.0,142.49,142.48,0.8430844]
[1720027099354,27.018,142.49,142.48,0.8430844]